bitfinex/quotes_ETHUSD_20250507
["timestamp","ask_amount","ask_price","bid_price","bid_amount"]
[1746576174185,9.04572054,1819.6,1819.3,5.49657341]
[1746576174346,9.04572054,1819.6,1819.2,13.11674957]
[1746576174548,5.49604017,1819.5,1819.2,7.61982785]
[1746576174880,9.04572054,1819.6,1819.2,6.79672785]
[1746576175165,10.61272692,1819.6,1819.2,6.79672785]
[1746576175465,5.11700638,1819.6,1819.3,5.49658433]
[1746576175649,5.11700638,1819.6,1819.3,5.49644863]
[1746576175848,9.04573786,1819.6,1819.3,5.49644863]
[1746576176056,9.04573786,1819.6,1819.2,6.79673668]
[1746576176250,9.04573786,1819.6,1819.3,5.49659256]
[1746576176885,3.55,1819.6,1819.3,5.49659256]
[1746576177679,3.55,1819.6,1819.3,10.99306023]
[1746576178162,3.55,1819.6,1819.3,5.49646767]
[1746576178661,9.04574077,1819.6,1819.2,6.79673588]
[1746576179559,3.55,1819.6,1819.3,5.4965025]
[1746576180365,3.55,1819.6,1819.4,6.019]
[1746576180658,0.3692,1820.0,1819.8,5.49490808]
[1746576180828,0.3692,1820.0,1819.9,11.964]
[1746576181224,0.3692,1820.0,1819.4,1.70119676]
[1746576181225,0.55,1819.9,1819.4,1.70119676]
[1746576181464,6.04527442,1819.8,1819.5,11.977]
[1746576181762,0.814,1819.9,1819.5,11.977]
[1746576181923,9.41388808,1820.0,1819.6,0.7601]
[1746576182128,0.9192,1820.0,1819.7,5.49530762]
[1746576183165,6.41372973,1820.0,1819.7,5.49530762]
[1746576183672,0.9192,1820.0,1819.7,5.49530762]
[1746576184154,0.55,1820.0,1819.7,5.49530762]
[1746576184567,6.04454395,1820.0,1819.7,5.49530762]
[1746576185284,6.7162108,1820.1,1819.8,5.49501622]
[1746576185434,7.68783188,1820.1,1819.9,11.964]
[1746576185771,13.18226909,1820.1,1819.9,11.964]
[1746576185949,6.04450549,1820.0,1819.9,11.964]
[1746576186344,5.49534663,1819.8,1819.4,0.792]
[1746576186544,6.04513783,1819.7,1819.5,11.889]
[1746576186758,5.49560317,1819.7,1819.5,11.889]
[1746576187158,6.04529802,1819.8,1819.5,11.889]
[1746576188476,5.49544939,1819.7,1819.5,11.889]
[1746576189175,6.28828899,1819.5,1819.0,26.10006803]
[1746576189378,0.7921,1819.5,1819.2,5.49689064]
[1746576189673,0.7921,1819.9,1819.2,0.7847]
[1746576189863,0.7921,1819.9,1819.6,5.49554194]
[1746576189864,3.0,1819.9,1819.6,5.49554194]
[1746576190065,3.0,1819.9,1819.7,11.891]
[1746576190264,3.0,1819.9,1819.7,17.38636415]
[1746576191041,3.0,1819.9,1819.7,11.891]
[1746576191879,8.49480891,1819.9,1819.7,11.891]
[1746576192190,9.6943866,1820.1,1819.7,11.891]
[1746576192388,3.0,1819.9,1819.7,11.891]
[1746576192875,8.49485508,1819.9,1819.7,11.891]
[1746576193091,5.49510935,1819.8,1819.7,11.891]
[1746576193263,5.49544625,1819.7,1819.3,6.26143266]
[1746576193483,10.99188541,1819.6,1819.4,11.886]
[1746576193655,12.58563095,1819.6,1819.4,11.886]
[1746576193854,5.49641817,1819.4,1819.1,6.26207122]
[1746576194071,0.55,1819.4,1819.2,11.888]
[1746576194382,0.55,1819.4,1819.2,17.38488388]
[1746576194601,0.55,1819.4,1819.2,11.888]
[1746576195304,7.08961465,1819.6,1819.2,17.38477757]
[1746576195601,3.0,1819.8,1819.4,5.49608663]
[1746576195748,3.0,1819.8,1819.5,6.30302192]
[1746576195949,13.99055595,1819.8,1819.6,11.888]
[1746576196150,8.49514794,1819.8,1819.6,11.888]
[1746576196749,3.0,1819.8,1819.6,11.888]
[1746576196949,8.49516171,1819.8,1819.6,11.888]
[1746576197752,3.0,1819.8,1819.6,11.888]
[1746576198591,3.0,1819.9,1819.7,5.49539727]
[1746576198775,3.0,1819.9,1819.6,17.38350845]
[1746576198984,8.49481199,1819.9,1819.6,17.38350845]
[1746576199890,8.49499663,1819.9,1819.6,12.717]
[1746576200059,9.89396452,1819.9,1819.6,12.717]
[1746576200253,15.38903943,1819.9,1819.6,12.717]
[1746576201996,9.89396452,1819.9,1819.6,12.717]
[1746576202171,8.49499663,1819.9,1819.6,12.717]
[1746576202497,5.49480857,1819.9,1819.6,18.2126652]
[1746576202700,8.49469525,1820.0,1819.6,18.2126652]
[1746576202869,0.799,1820.5,1819.9,0.8082]
[1746576203071,5.493411,1820.4,1820.0,17.41024159]
[1746576203398,5.493411,1820.4,1820.0,17.35530278]
[1746576204198,10.98700805,1820.4,1820.0,17.35548779]
[1746576204377,10.98699704,1820.4,1820.0,17.35548779]
[1746576204882,5.49366449,1820.3,1820.0,17.35548779]
[1746576205083,8.49348432,1820.4,1820.0,17.35548779]
[1746576205270,13.98702067,1820.4,1820.0,17.35548779]
[1746576205471,8.49348432,1820.4,1820.0,17.35548779]
[1746576205674,13.98704145,1820.4,1820.0,17.35548779]
[1746576205856,5.49409231,1820.2,1820.0,11.861]
[1746576206056,7.52198832,1820.4,1820.0,17.35531177]
[1746576206309,6.30364255,1820.7,1820.3,5.49341591]
[1746576206457,10.25929273,1820.8,1820.4,11.864]
[1746576206665,5.49258944,1820.7,1820.4,11.864]
[1746576206863,10.98526442,1820.7,1820.4,11.864]
[1746576207598,5.49272923,1820.6,1820.4,11.864]
[1746576207810,5.49341399,1820.4,1820.1,0.7879]
[1746576208110,5.49341399,1820.4,1820.2,11.858]
[1746576208270,5.49359995,1820.3,1820.1,0.7879]
[1746576208471,5.49429872,1820.1,1819.8,0.7879]
[1746576208667,9.04450549,1820.0,1819.9,11.88]
[1746576208970,9.04450549,1820.0,1819.9,5.935]
[1746576209699,6.04450549,1820.0,1819.9,5.935]
[1746576209885,9.30498791,1820.2,1819.9,5.935]
[1746576210089,5.49374095,1820.3,1820.0,6.5375]
[1746576210297,5.49333225,1820.4,1819.8,0.8098]
[1746576210298,5.49430455,1820.1,1819.8,0.8098]
[1746576210618,5.49451871,1820.0,1819.9,11.887]
[1746576210802,5.49430455,1820.1,1819.9,11.887]
[1746576210968,5.49443146,1820.1,1819.9,11.887]
[1746576211319,5.49461246,1820.0,1819.8,0.8098]
[1746576211609,5.49443146,1820.1,1819.9,11.887]
[1746576211909,5.49450549,1820.0,1819.9,11.887]
[1746576213418,7.93149918,1820.0,1819.9,5.944]
[1746576213577,7.93149918,1820.0,1819.9,11.878]
[1746576215707,3.0,1820.1,1819.9,11.878]
[1746576215898,3.55,1820.1,1820.0,0.8187]
[1746576216099,8.49420361,1820.1,1820.0,0.8187]
[1746576216296,8.49380916,1820.3,1820.0,0.8187]
[1746576216509,3.0,1820.1,1820.0,0.8187]
[1746576216667,8.49404519,1820.2,1820.0,0.8187]
[1746576216875,5.49404519,1820.2,1820.0,0.8187]
[1746576217104,6.42535097,1820.3,1820.0,0.8187]
[1746576217309,3.93158092,1820.3,1820.0,0.8187]
[1746576217610,5.49417139,1820.2,1820.1,5.936]
[1746576218529,5.49417139,1820.2,1819.8,0.8281]
[1746576218530,5.49458432,1820.0,1819.8,0.8281]
[1746576218693,5.49458432,1820.0,1819.9,11.864]
[1746576219222,5.49435852,1820.1,1819.9,11.864]
[1746576219717,0.55,1820.1,1819.9,11.864]
[1746576220078,5.49320921,1820.5,1820.1,5.49411016]
[1746576220274,5.49271651,1820.6,1820.2,5.54855305]
[1746576220518,5.49271651,1820.6,1820.1,1.32811102]
[1746576220519,3.0,1820.5,1820.3,17.3585919]
[1746576220820,3.0,1820.5,1820.3,11.865]
[1746576221014,5.49137604,1821.1,1820.4,26.1882011]
[1746576221220,5.49151241,1821.0,1820.7,5.49229644]
[1746576221517,5.49178977,1820.9,1820.8,11.869]
[1746576221675,8.49130824,1821.1,1820.8,11.869]
[1746576221878,9.87210384,1821.1,1820.8,11.869]
[1746576222091,5.49151883,1821.0,1820.8,11.869]
[1746576222381,10.98329724,1821.0,1820.8,11.869]
[1746576222578,5.49151883,1821.0,1820.8,11.869]
[1746576222864,10.98326182,1821.0,1820.8,11.869]
[1746576223016,5.49178977,1820.9,1820.8,11.869]
[1746576224258,5.49178977,1820.9,1820.6,0.832]
[1746576224459,4.3807956,1821.1,1820.8,11.856]
[1746576224632,3.0,1821.0,1820.8,11.856]
[1746576225763,8.49153441,1821.0,1820.8,11.856]
[1746576225970,3.0,1821.0,1820.8,11.856]
[1746576226757,6.04098547,1821.2,1820.8,17.34789615]
[1746576226963,5.49075141,1821.3,1821.0,6.24965915]
[1746576227258,5.49075141,1821.3,1821.0,0.7582]
[1746576227619,3.0,1821.3,1821.0,0.7582]
[1746576227824,5.48986805,1821.6,1821.2,5.49076783]
[1746576228046,5.48986805,1821.6,1821.3,11.841]
[1746576228557,5.48957195,1821.7,1821.3,18.08974111]
[1746576228762,5.48957195,1821.7,1821.3,18.089578]
[1746576229081,8.48957195,1821.7,1821.3,14.95722926]
[1746576229235,5.48968867,1821.6,1821.3,14.95722926]
[1746576229827,8.48957974,1821.7,1821.3,20.447804]
[1746576230157,13.97923249,1821.7,1821.3,20.447804]
[1746576230361,5.48969863,1821.6,1821.3,20.447804]
[1746576230562,5.49010033,1821.5,1821.3,12.5992]
[1746576231275,5.4902822,1821.4,1821.3,11.841]
[1746576231442,5.4902822,1821.4,1821.1,0.8177]
[1746576231647,5.49105819,1821.2,1820.9,0.8177]
[1746576231849,5.49118664,1821.1,1821.0,11.832]
[1746576232247,11.53218869,1821.2,1821.0,11.832]
[1746576232568,5.49118664,1821.1,1821.0,11.832]
[1746576232970,0.55,1821.2,1821.0,5.929]
[1746576233171,6.04118664,1821.1,1821.0,11.83]
[1746576234373,9.04118664,1821.1,1821.0,11.825]
[1746576234743,0.7757,1820.9,1820.8,5.929]
[1746576235084,5.49162025,1821.0,1820.8,11.822]
[1746576235573,10.98336799,1821.0,1820.8,11.822]
[1746576236274,5.49178977,1820.9,1820.8,11.822]
[1746576237253,5.49162025,1821.0,1820.8,11.822]
[1746576237774,10.98338826,1821.0,1820.8,11.822]
[1746576238578,5.49178977,1820.9,1820.8,11.822]
[1746576238780,6.59013077,1820.9,1820.8,11.804]
[1746576239152,7.39583077,1820.9,1820.8,11.804]
[1746576239543,7.94583077,1820.9,1820.8,11.804]
[1746576240781,0.55,1820.9,1820.8,11.804]
[1746576241081,5.49162025,1821.0,1820.8,11.804]
[1746576242473,3.0,1821.0,1820.8,11.804]
[1746576242680,8.49149837,1821.0,1820.8,11.804]
[1746576243181,3.0,1821.0,1820.8,11.804]
[1746576243490,10.9827532,1821.1,1820.8,11.804]
[1746576243666,3.0,1821.2,1820.9,5.54660451]
[1746576243976,8.49089125,1821.2,1820.8,19.10342057]
[1746576244179,13.98205594,1821.2,1820.8,19.10342057]
[1746576244381,5.49119566,1821.1,1820.8,13.61149903]
[1746576245146,5.49119566,1821.1,1820.8,19.10358561]
[1746576245485,8.49097223,1821.2,1820.8,19.10358561]
[1746576245789,8.49097223,1821.2,1820.9,7.40211518]
[1746576246000,3.0,1821.2,1820.8,13.61149903]
[1746576246161,3.0,1821.2,1820.8,5.869]
[1746576246162,6.04192027,1820.9,1820.8,5.869]
[1746576246356,6.04209138,1820.8,1820.7,11.736]
[1746576246560,9.85449138,1820.8,1820.7,5.866]
[1746576246786,9.85449138,1820.8,1820.4,19.808]
[1746576246787,6.04299642,1820.5,1820.4,25.674]
[1746576247089,10.26626831,1820.5,1820.4,7.8857]
[1746576247280,5.49434936,1820.1,1819.8,0.7755]
[1746576247476,5.49434936,1820.1,1819.9,11.743]
[1746576248399,5.49450549,1820.0,1819.9,11.743]
[1746576248717,5.49434936,1820.1,1819.9,11.743]
[1746576248872,5.49449292,1820.1,1819.9,11.743]
[1746576249073,5.49450549,1820.0,1819.9,11.743]
[1746576249673,5.49428045,1820.1,1819.9,11.743]
[1746576249978,6.04406863,1820.2,1819.9,11.743]
[1746576250300,5.49426491,1820.1,1819.9,11.743]
[1746576250487,15.69375277,1820.3,1819.9,11.743]
[1746576250691,15.69375277,1820.3,1819.9,18.48946814]
[1746576251016,5.49435153,1820.1,1819.9,12.99485]
[1746576251404,5.49416403,1820.2,1819.9,12.99485]
[1746576251713,10.2,1820.3,1819.9,11.743]
[1746576251883,5.49450549,1820.0,1819.9,11.743]
[1746576252066,5.49450549,1820.0,1819.9,5.866]
[1746576252268,5.49536523,1819.8,1819.6,19.798]
[1746576252496,5.49541133,1819.7,1819.6,25.665]
[1746576252674,10.41264785,1819.7,1819.6,31.536]
[1746576253474,10.41264785,1819.7,1819.6,5.867]
[1746576253675,10.68724687,1819.7,1819.6,5.867]
[1746576254181,10.41264785,1819.7,1819.6,5.867]
[1746576257410,8.49541133,1819.7,1819.6,5.867]
[1746576258071,3.0,1819.7,1819.6,5.867]
[1746576258472,8.49541133,1819.7,1819.6,5.867]
[1746576261423,15.69497282,1819.9,1819.6,5.867]
[1746576262009,5.4952563,1819.8,1819.6,5.867]
[1746576263328,5.49526826,1819.8,1819.6,5.867]
[1746576263536,5.49513691,1819.8,1819.6,5.867]
[1746576263834,15.69495947,1819.9,1819.7,0.7756]
[1746576264051,5.49510935,1819.8,1819.7,0.7756]
[1746576264400,21.19002913,1819.9,1819.7,0.7756]
[1746576264736,15.69495947,1819.9,1819.7,0.7756]
[1746576264912,5.49510935,1819.8,1819.7,0.7756]
[1746576266330,5.49510935,1819.8,1819.6,5.867]
[1746576267033,5.49541133,1819.7,1819.6,5.867]
[1746576267235,5.49541133,1819.7,1819.6,11.697]
[1746576267639,5.49610392,1819.5,1819.3,0.8138]
[1746576267801,5.49571334,1819.6,1819.4,5.87]
[1746576268008,5.49571334,1819.6,1819.4,11.702]
[1746576268417,5.49571334,1819.6,1819.5,5.83]
[1746576268615,6.04571334,1819.6,1819.5,5.83]
[1746576268804,7.36474546,1819.6,1819.5,5.83]
[1746576269145,1.86903212,1819.6,1819.5,5.83]
[1746576269442,6.04571334,1819.6,1819.5,5.83]
[1746576269733,0.55,1819.6,1819.5,5.83]
[1746576270551,6.59463734,1819.7,1819.5,5.83]
[1746576272157,5.49526847,1819.8,1819.5,11.3259959]
[1746576272359,3.0,1819.8,1819.6,0.7919]
[1746576272652,3.0,1819.8,1819.6,6.28752428]
[1746576272853,3.0,1819.8,1819.6,0.7919]
[1746576273058,8.4952019,1819.8,1819.6,0.7919]
[1746576273362,3.0,1819.8,1819.6,0.7919]
[1746576274869,10.2,1819.9,1819.6,6.34235952]
[1746576275162,3.0,1819.9,1819.6,6.28739214]
[1746576275463,3.0,1819.9,1819.6,7.49913135]
[1746576275958,8.49487387,1819.9,1819.6,2.00363921]
[1746576276161,3.0,1819.9,1819.6,0.7919]
[1746576276565,8.49497815,1819.9,1819.6,0.7919]
[1746576277059,8.49489537,1819.9,1819.6,0.7919]
[1746576277359,8.49489537,1819.9,1819.6,6.28749109]
[1746576278478,6.04440884,1820.1,1819.7,5.4952659]
[1746576278635,6.04440884,1820.1,1819.8,5.817]
[1746576278834,5.49464978,1820.0,1819.9,5.81]
[1746576280449,5.49523349,1819.8,1819.6,0.7919]
[1746576280767,5.49523349,1819.8,1819.7,11.624]
[1746576280768,6.04510935,1819.8,1819.7,11.624]
[1746576280949,7.14412217,1819.8,1819.7,11.624]
[1746576281441,7.14412217,1819.8,1819.7,5.817]
[1746576281644,7.14412217,1819.8,1819.7,11.623]
[1746576283034,5.49493997,1819.9,1819.7,11.623]
[1746576283334,5.49510935,1819.8,1819.7,11.623]
[1746576286286,5.49598788,1819.6,1819.4,19.812]
[1746576286457,6.04598788,1819.6,1819.5,11.611]
[1746576286984,6.04598788,1819.6,1819.5,5.817]
[1746576287184,6.04598788,1819.6,1819.5,11.613]
[1746576287682,5.49557976,1819.7,1819.5,11.613]
[1746576287982,5.49571334,1819.6,1819.5,11.613]
[1746576288688,6.04561188,1819.7,1819.5,11.613]
[1746576289182,6.04561188,1819.7,1819.5,12.3848]
[1746576291990,11.54125498,1819.7,1819.5,12.3848]
[1746576292295,5.49571334,1819.6,1819.5,12.3848]
[1746576292595,6.04561188,1819.7,1819.5,12.3848]
[1746576295107,11.54129752,1819.7,1819.5,12.3848]
[1746576295311,5.49571334,1819.6,1819.5,12.3848]
[1746576295720,5.49571334,1819.6,1819.5,11.613]
[1746576296578,5.49571334,1819.6,1819.5,11.583]
[1746576296775,11.54126749,1819.7,1819.5,11.583]
[1746576296981,6.04561188,1819.7,1819.5,11.583]
[1746576297699,5.49580457,1819.6,1819.3,5.49651583]
[1746576298009,5.49580457,1819.6,1819.4,11.58]
[1746576298608,6.04546857,1819.7,1819.4,12.3779]
[1746576298821,11.54111322,1819.7,1819.4,12.3779]
[1746576299118,5.49576751,1819.6,1819.4,12.3779]
[1746576299429,5.49546857,1819.7,1819.4,12.3779]
[1746576299643,10.99061905,1819.8,1819.4,19.66147361]
[1746576299927,5.49524744,1819.8,1819.4,19.6614217]
[1746576300137,5.49555426,1819.7,1819.4,14.1653304]
[1746576300300,5.49555426,1819.7,1819.4,12.3779]
[1746576300503,8.49502504,1819.9,1819.5,0.05495627]
[1746576300699,5.49522601,1819.8,1819.5,5.4958817]
[1746576300925,13.99010933,1819.9,1819.5,5.4958817]
[1746576301104,5.495245,1819.8,1819.4,12.3779]
[1746576301304,5.49556447,1819.7,1819.4,14.16533543]
[1746576301822,8.49484095,1819.9,1819.5,5.49592146]
[1746576301823,5.49535934,1819.8,1819.5,5.49592146]
[1746576302189,5.49535934,1819.8,1819.4,19.66146799]
[1746576302387,5.49435875,1820.1,1819.7,5.4953373]
[1746576302590,5.49422798,1820.1,1819.8,17.63847194]
[1746576303030,5.49422798,1820.1,1819.8,12.13594321]
[1746576303719,5.49422798,1820.1,1819.9,0.8098]
[1746576303720,3.0,1820.1,1819.9,0.8098]
[1746576304019,8.49420843,1820.1,1819.9,0.8098]
[1746576304501,5.49450549,1820.0,1819.9,0.8098]
[1746576305023,8.49420843,1820.1,1819.8,12.4245]
[1746576305387,13.98868035,1820.1,1819.8,12.4245]
[1746576305683,3.0,1820.2,1820.0,5.49446834]
[1746576305907,15.69342615,1820.4,1820.1,0.758]
[1746576306098,5.49369911,1820.3,1820.1,0.758]
[1746576306709,5.49369911,1820.3,1820.2,11.532]
[1746576307112,8.90402347,1820.5,1820.2,11.532]
[1746576307423,8.49315158,1820.5,1820.2,11.532]
[1746576308217,8.49315158,1820.5,1820.2,17.02585736]
[1746576308425,8.49315158,1820.5,1820.2,11.532]
[1746576308785,3.0,1820.5,1820.3,0.05493074]
[1746576308989,3.0,1820.5,1820.3,0.7933]
[1746576309184,3.0,1820.5,1820.3,6.28686415]
[1746576309900,5.49250412,1820.7,1820.3,6.28686415]
[1746576310099,10.9851506,1820.7,1820.3,6.28686415]
[1746576310303,5.49297461,1820.6,1820.3,0.7933]
[1746576310922,5.80139485,1820.6,1820.3,0.7933]
[1746576311231,0.30842024,1820.6,1820.3,0.7933]
[1746576311527,5.49354234,1820.4,1820.1,6.25846833]
[1746576311718,5.49354234,1820.4,1820.2,11.522]
[1746576311921,0.30842024,1820.3,1820.2,11.522]
[1746576312213,5.80202019,1820.3,1820.2,11.522]
[1746576312392,0.30842024,1820.3,1820.2,11.522]
[1746576312592,0.30750534,1820.3,1820.2,11.522]
[1746576313439,0.30750534,1820.3,1820.2,17.78020176]
[1746576313597,0.30750534,1820.3,1820.2,20.10762509]
[1746576313800,0.30749651,1820.3,1820.2,14.61372333]
[1746576314500,5.80109646,1820.3,1820.2,11.522]
[1746576314730,5.80109646,1820.3,1820.2,11.518]
[1746576314900,0.30749651,1820.3,1820.2,5.765]
[1746576315100,0.30743024,1820.3,1820.2,11.518]
[1746576315637,0.30743071,1820.3,1820.2,11.518]
[1746576316340,5.49312663,1820.5,1820.2,11.518]
[1746576316501,10.98637781,1820.5,1820.2,11.518]
[1746576316846,5.49312663,1820.5,1820.2,17.01188155]
[1746576317145,0.30733333,1820.4,1820.2,17.01188155]
[1746576317323,0.30733333,1820.4,1820.2,11.518]
[1746576317922,8.89782687,1820.8,1820.2,13.76859941]
[1746576318238,10.2,1820.9,1820.4,0.8025]
[1746576318405,0.30726166,1820.8,1820.5,0.05491786]
[1746576318605,0.30726166,1820.8,1820.6,11.516]
[1746576318835,0.30726166,1820.7,1820.6,11.516]
[1746576319350,0.30726166,1820.7,1820.6,17.00869471]
[1746576319507,0.30726166,1820.7,1820.6,20.02664355]
[1746576319955,3.0,1821.0,1820.7,5.49218074]
[1746576320458,0.30707375,1820.9,1820.6,20.026425]
[1746576320607,0.30707375,1820.9,1820.7,5.49238831]
[1746576320806,3.0,1821.0,1820.8,5.54683439]
[1746576321219,3.0,1821.0,1820.7,5.49221217]
[1746576321526,3.0,1821.0,1820.8,0.05491389]
[1746576321709,7.79327672,1821.4,1820.8,5.54694407]
[1746576321906,5.49119448,1821.1,1820.8,5.49203018]
[1746576322106,5.49119448,1821.1,1820.8,0.05491275]
[1746576323145,5.49119448,1821.1,1820.8,5.54697953]
[1746576323348,5.49114389,1821.2,1820.8,5.54697953]
[1746576323535,5.4907253,1821.3,1820.9,6.31132954]
[1746576323734,12.22235098,1821.4,1821.0,17.05937665]
[1746576324050,12.22237344,1821.4,1821.0,17.00446755]
[1746576324268,12.22237344,1821.4,1821.0,22.49557911]
[1746576324549,6.73197784,1821.4,1821.1,5.4909828]
[1746576324715,6.31682784,1821.6,1821.2,6.25326762]
[1746576325045,5.49011383,1821.5,1821.2,0.7625]
[1746576325450,8.49011383,1821.5,1821.2,0.7625]
[1746576325839,8.49011383,1821.5,1821.2,6.25336915]
[1746576326017,3.0,1821.5,1821.2,6.25336915]
[1746576326640,3.0,1821.5,1821.2,0.7625]
[1746576326839,8.49015089,1821.5,1821.2,0.7625]
[1746576327045,8.49015089,1821.5,1821.2,6.25337659]
[1746576327247,8.49015089,1821.5,1821.2,0.7625]
[1746576327945,3.0,1821.5,1821.2,0.7625]
[1746576328182,3.0,1821.5,1821.3,0.05489983]
[1746576328355,8.48987852,1821.6,1821.4,11.512]
[1746576328848,5.48950049,1821.7,1821.4,11.512]
[1746576329046,8.48937805,1821.7,1821.4,11.512]
[1746576329989,5.48998078,1821.5,1821.4,11.512]
[1746576330162,8.48952371,1821.7,1821.4,11.512]
[1746576330362,5.48989408,1821.6,1821.4,11.512]
[1746576330977,5.48998078,1821.5,1821.4,11.512]
[1746576331804,5.48989408,1821.6,1821.4,12.08019803]
[1746576331994,5.48998078,1821.5,1821.4,12.08019803]
[1746576332149,8.48957977,1821.7,1821.4,12.08019803]
[1746576332348,5.48968489,1821.6,1821.4,12.08019803]
[1746576333302,8.48957977,1821.7,1821.4,12.08019803]
[1746576334289,5.48922351,1821.8,1821.4,19.32754294]
[1746576334495,5.48941505,1821.7,1821.5,0.05489316]
[1746576334652,5.48940012,1821.7,1821.6,0.55307915]
[1746576336071,5.48971931,1821.6,1821.4,11.512]
[1746576336306,5.48971931,1821.6,1821.5,0.55307915]
[1746576337104,8.48937628,1821.8,1821.5,0.55307915]
[1746576337105,8.48922797,1821.8,1821.5,0.55307915]
[1746576337306,12.72488901,1821.9,1821.5,0.60797284]
[1746576337510,5.48911652,1821.8,1821.5,0.60797284]
[1746576337676,5.48911652,1821.8,1821.5,0.55307915]
[1746576338705,5.489182,1821.8,1821.5,0.55307915]
[1746576340489,5.48940533,1821.7,1821.5,0.55307915]
[1746576340811,5.48925189,1821.8,1821.5,0.55307915]
[1746576341321,5.48941007,1821.7,1821.5,0.55307915]
[1746576341828,5.48928747,1821.8,1821.5,0.55307915]
[1746576342322,5.48954953,1821.7,1821.5,0.55307915]
[1746576342699,5.48928747,1821.8,1821.5,0.55307915]
[1746576343314,5.48939424,1821.7,1821.5,0.55307915]
[1746576343633,5.48928747,1821.8,1821.5,0.55307915]
[1746576343829,5.48961461,1821.7,1821.5,0.55307915]
[1746576344531,5.48923911,1821.8,1821.5,0.55307915]
[1746576344700,5.48923911,1821.8,1821.5,6.04303578]
[1746576345340,5.48923911,1821.8,1821.5,0.60797259]
[1746576345537,0.1,1821.9,1821.5,0.60797259]
[1746576345737,0.1,1821.9,1821.5,6.09782686]
[1746576345914,5.58893543,1821.9,1821.5,6.09782686]
[1746576346120,5.48909314,1821.8,1821.5,6.09782686]
[1746576346309,5.58893543,1821.9,1821.5,6.09780075]
[1746576346653,11.07798179,1821.9,1821.5,6.09777296]
[1746576346805,5.58893543,1821.9,1821.5,6.09777296]
[1746576347942,5.48911884,1821.8,1821.5,6.09777296]
[1746576348662,0.1,1821.9,1821.5,2.91796451]
[1746576348827,0.1,1821.9,1821.8,5.48907673]
[1746576349009,0.1,1821.9,1821.8,16.98007673]
[1746576349210,0.1,1821.9,1821.8,17.53077926]
[1746576349804,0.1,1821.9,1821.8,19.83278234]
[1746576350245,0.1,1821.9,1821.8,12.04170253]
[1746576351250,6.35027545,1821.9,1821.8,6.29570253]
[1746576351425,6.35027545,1821.9,1821.8,12.03970253]
[1746576351950,9.35027545,1821.9,1821.8,12.03970253]
[1746576352942,6.35027545,1821.9,1821.8,12.03970253]
[1746576353650,0.1,1821.9,1821.8,12.03970253]
[1746576355652,0.1,1821.9,1821.8,17.52877926]
[1746576357427,0.1,1821.9,1821.8,19.90901645]
[1746576358969,0.1,1821.9,1821.8,14.41993972]
[1746576359160,0.1,1821.9,1821.8,17.52877926]
[1746576360462,0.1,1821.9,1821.8,18.32407926]
[1746576360676,0.1,1821.9,1821.8,21.32407926]
[1746576362268,0.1,1822.9,1822.5,5.48696844]
[1746576362564,0.1,1822.9,1822.8,6.24306539]
[1746576362757,0.1,1822.9,1822.8,6.72865737]
[1746576363952,0.1,1822.9,1822.8,18.30165737]
[1746576365489,0.1,1822.9,1822.8,18.70616545]
[1746576366191,0.1,1822.9,1822.8,18.30165737]
[1746576366377,0.1,1822.9,1822.8,21.98044881]
[1746576368511,0.1,1822.9,1822.8,22.04044881]
[1746576376645,0.005,1823.3,1823.2,5.48486178]
[1746576376826,0.005,1823.3,1823.2,17.90309276]
[1746576377018,0.005,1823.3,1823.2,12.05233768]
[1746576377803,5.48956096,1823.3,1823.2,12.05233768]
[1746576378010,5.48956096,1823.3,1823.2,12.06033768]
[1746576378239,5.48956096,1823.3,1823.2,0.43633768]
[1746576378240,0.005,1823.3,1823.2,0.43633768]
[1746576378405,3.005,1823.3,1823.2,12.05933768]
[1746576378607,8.48956096,1823.3,1823.2,11.623]
[1746576378806,9.25836096,1823.3,1823.2,12.05933768]
[1746576379035,10.73264296,1823.3,1823.2,6.25233768]
[1746576379248,5.48602328,1822.9,1822.6,19.787]
[1746576379462,3.7688,1822.8,1822.7,11.628]
[1746576379821,3.0,1822.8,1822.7,11.628]
[1746576380432,3.0,1822.7,1822.6,19.787]
[1746576380851,3.0,1822.7,1822.6,31.42]
[1746576381223,8.48636637,1822.7,1822.6,31.42]
[1746576381776,8.48636637,1822.7,1822.6,31.416]
[1746576381777,17.47478597,1822.7,1822.6,31.416]
[1746576381939,17.47478597,1822.7,1822.6,25.599]
[1746576382136,17.47478597,1822.7,1822.6,31.416]
[1746576382473,18.02478597,1822.7,1822.6,31.416]
[1746576383019,18.02478597,1822.7,1822.6,19.787]
[1746576383221,18.02478597,1822.7,1822.6,30.18398825]
[1746576383421,18.43018134,1822.7,1822.6,29.58481724]
[1746576383623,5.48880897,1821.9,1821.7,0.7531]
[1746576383936,5.48880897,1821.9,1821.8,8.19254222]
[1746576384141,5.48880897,1821.9,1821.8,11.634]
[1746576384510,8.76789334,1821.9,1821.8,11.634]
[1746576384623,8.76789334,1821.9,1821.8,11.4511]
[1746576384824,5.48962088,1821.7,1821.5,19.776]
[1746576385072,8.48998078,1821.5,1821.4,0.02836177]
[1746576385756,3.0,1821.5,1821.4,0.02836177]
[1746576386789,8.48998078,1821.5,1821.4,0.41693479]
[1746576387278,9.83508078,1821.5,1821.4,0.38857302]
[1746576387577,5.49058364,1821.3,1821.2,5.814]
[1746576387885,4.20688053,1821.5,1821.2,6.25747936]
[1746576388030,4.20688053,1821.5,1821.2,6.20257302]
[1746576388230,0.41178053,1821.5,1821.3,0.05489992]
[1746576388461,9.2846607,1821.7,1821.3,1.22972492]
[1746576388641,9.2846607,1821.7,1821.3,6.7201198]
[1746576388642,0.7951,1821.7,1821.3,6.7201198]
[1746576388850,0.7951,1821.7,1821.4,5.87885098]
[1746576389051,0.7951,1821.7,1821.5,5.9188942]
[1746576389253,3.0,1821.6,1821.5,5.864]
[1746576389453,3.40423186,1821.6,1821.5,5.864]
[1746576389647,3.40423186,1821.6,1821.5,6.25257302]